Cogmind - Beta 16 @@@ ROGUE MODE // 2026.03.27 @ 16:45:22 Player: GermanMO Result: Destroyed by D-53 Grenadier with Mini Grenade Launcher Performance ------------- Evolutions (0) 0 Regions Visited (2) 400 Robots Destroyed (20) 100 Value Destroyed (315) 315 Prototype IDs (0) 0 Alien Tech Used (0) 0 Bonus (0) 0 TOTAL SCORE: 815 Bonus ------- None Cogmind --------- Core Integrity 0/250 Matter 256/300 Energy 99/100 System Corruption 3% Temperature Cool (0) Movement Core (100) Ox1 Location -10/Mines Parts ------- > --- POWER (1) -------- (None) > --- PROPULSION (2) --- (None) > --- UTILITY (2) ------ Small Storage Unit Signal Interpreter > --- WEAPON (2) ------- (None) > --- INVENTORY (8) ---- Light Ion Engine Improved Terrain Scanner Core Shielding Grenade Launcher Peak State ------------ > --- POWER ------------ Ion Engine > --- PROPULSION ------- Wheel Compact Wheel > --- UTILITY ---------- Small Storage Unit Improved Terrain Scanner > --- WEAPON ----------- EM Pulse Gun Medium Laser > --- INVENTORY -------- Aluminum Leg Aluminum Leg Compact Wheel [Rating: 9] Favorites ----------- Power Ion Engine Engine Ion Engine Propulsion Compact Wheel Leg Aluminum Leg Wheel Compact Wheel Utility Small Storage Unit Device Improved Terrain Scanner Storage Small Storage Unit Processor Signal Interpreter Weapon Medium Laser Energy Gun Medium Laser Launcher Grenade Launcher Special Weapon Mining Laser Build | -11 -10 -10 ------- Run | Yrd Mat Min Slots Evolved . | . . . Power . | . . . Propulsion . | . . . Utility . | . . . Weapon . | . . . Parts Attached 13 | 8 4 1 Power 1 | 1 . . Engine 1 | 1 . . Core . | . . . Reactor . | . . . Propulsion 5 | 3 2 . Treads . | . . . Leg 2 | . 2 . Wheel 3 | 3 . . Hover . | . . . Flight . | . . . Utility 3 | 2 1 . Device 1 | 1 . . Storage 1 | 1 . . Processor 1 | . 1 . Hackware . | . . . Protection . | . . . Artifact . | . . . Weapon 4 | 2 1 1 Energy Gun 2 | 2 . . Energy Cannon . | . . . Ballistic Gun . | . . . Ballistic Cannon . | . . . Launcher 1 | . 1 . Special Weapon 1 | . . 1 Impact Weapon . | . . . Slashing Weapon . | . . . Piercing Weapon . | . . . Special Melee Weapon . | . . . Unidentified Prototypes . | . . . Parts Lost 8 | . 3 5 Power 1 | . . 1 Propulsion 4 | . 2 2 Utility . | . . . Weapon 3 | . 1 2 Highest Loss Streak 4 | . 2 4 To Critical Strikes . | . . . Average Backups 5 | 3 6 4 Power . | . . 1 Propulsion 1 | 3 1 . Utility 1 | . 1 2 Weapon 1 | . 2 1 Tool/Special . | . . . Unused Backups 4 | . 1 3 Power 1 | . . 1 Propulsion 1 | . 1 . Utility 1 | . . 1 Weapon 1 | . . 1 Tool/Special . | . . . Average Slot Usage (%) 85 | . 88 79 Engine 12 | . 14 9 Leg 15 | . 10 26 Wheel 9 | . 14 . Device 4 | . 6 . Storage 14 | . 14 14 Processor 9 | . 7 14 Energy Gun 10 | . 15 . Launcher 7 | . 5 12 Peak Build Rating 9 | 9 9 6 Average Rating 7 | 7 7 5 On Entrance 5 | . 9 6 Avg Prop Armor Cover (%) . | . . . Naked Turns . | . . . Heaviest Build 15 | 15 15 13 Greatest Support 32 | 32 32 20 Greatest Overweight (x) 1 | 1 . 1 Average Overweight (x) . | . . . Largest Inventory Capacity 8 | 8 8 8 Average Capacity 7 | 7 8 8 Most Carried 8 | 5 8 5 Average Carried 5 | 3 6 4 Final Capacity 8 | 8 8 8 Final Carried 5 | 5 5 4 Class Distribution -------------------- 100% | Mutant Dominant Class ---------------- Mutant | -10/Materials Mutant | -10/Mines Resources | -11 -10 -10 ----------- Run | Yrd Mat Min Matter Collected 383 | 290 82 11 Remotely . | . . . Salvage Created 563 | 244 279 40 Parts 41 | 18 14 9 Haulers Intercepted . | . . . Recyclers Shooed . | . . . Parts Field Recycled . | . . . Retrieved Matter . | . . . Parts Self-Destructed . | . . . Prevented . | . . . Parts Restored . | . . . Kills | -11 -10 -10 ------- Run | Yrd Mat Min Combat Hostiles Destroyed 14 | . 8 6 Guns 3 | . 3 . Cannons 1 | . . 1 AOE 10 | . 5 5 Classes Destroyed 6 | 3 2 1 Worker 2 | 2 . . Tunneler 5 | 4 . 1 Recycler 2 | 1 1 . Swarmer 6 | . 3 3 Grunt 5 | . 5 . Assembled 3 | . . 3 Best Kill Streak 5 | 2 5 4 Combat Bots Only 5 | . 5 3 Max Kills in Single Turn 4 | 1 2 4 Gunslinging . | . . . Exploded 3 | . 2 3 Melee . | . . . Uniques/NPCs Destroyed . | . . . Combat | -11 -10 -10 -------- Run | Yrd Mat Min Hostile Shots Fired 52 | . 29 23 Missed 13 | . 6 7 Hits 39 | . 23 16 Melee 1 | . . 1 Projectile 38 | . 23 15 AOE 8 | . . 8 Critical Strikes 1 | . 1 . Part Disruptions 1 | . . 1 Damage Taken 775 | . 297 478 Core 266 | . 55 211 Absorbed by Shields . | . . . Core Remaining (%) 100 | 100 . . Volleys Fired 40 | 14 17 9 Largest 2 | 2 2 1 Hottest 100 | 90 90 100 Shots Fired 71 | 28 34 9 Gun 58 | 28 30 . Cannon . | . . . Launcher 11 | . 4 7 Special 2 | . . 2 Kinetic . | . . . Thermal 32 | 14 16 2 Explosive 11 | . 4 7 Electromagnetic 28 | 14 14 . Robot Hit Streak 8 | 6 8 3 Robot Miss Streak 2 | 2 2 1 Penetration Max . | . . . Secondary Targets . | . . . Shots Hit Robots 41 | 16 21 4 Core Hits 35 | 8 14 13 Critical Kills . | . . . Critical Parts Destroyed . | . . . Critical Strikes 2 | 1 1 . Burn 2 | 1 1 . Melee Attacks . | . . . Impact . | . . . Slashing . | . . . Piercing . | . . . Sneak Attacks . | . . . Combat Hostiles . | . . . Follow-up Attacks . | . . . Damage Inflicted 1152 | 222 591 339 Guns 456 | 222 234 . Cannons . | . . . Explosions 672 | . 357 315 Melee . | . . . Ramming . | . . . Kinetic . | . . . Thermal 236 | 99 113 24 Explosive 672 | . 357 315 Electromagnetic 244 | 123 121 . Impact . | . . . Slashing . | . . . Piercing . | . . . Highest Corruption 3 | . 3 3 Average Corruption 2 | . 2 3 Corruption Purged . | . . . Corruption Blocked . | . . . Effects 9 | . 7 2 Message Errors 2 | . 2 . Matter Fused 1 | . 1 . Heat Flow Errors 1 | . . 1 Energy Discharges 1 | . 1 . Data Loss (minor) 3 | . 2 1 Misfires 1 | . 1 . Overload Shots . | . . . Overflow Damage 35 | . 35 . Projectiles . | . . . Explosions 35 | . 35 . Melee . | . . . Knockbacks . | . . . Impact . | . . . Kinetic . | . . . Secondary . | . . . Self-Inflicted Damage 49 | . . 49 Shots 3 | . . 3 Rammed . | . . . Targets Rammed . | . . . Kicked . | . . . Crushed . | . . . Highest Temperature 396 | 180 396 128 Average Temperature 103 | 65 138 56 Received Heat Transfer 185 | . 165 20 Effects 4 | . 4 . Energy Bleed 1 | . 1 . Interference 3 | . 3 . Siege Activations . | . . . Martial Activations . | . . . Shielding Activations . | . . . Robots Disrupted . | . . . Combat Hostiles . | . . . Robots Corrupted . | . . . Combat Hostiles . | . . . Parts Fried . | . . . Impact Corruptions . | . . . Robots Melted . | . . . Combat Hostiles . | . . . Parts Melted 1 | . 1 . Heat Transferred 827 | 370 407 50 Parts Sabotaged . | . . . Parts Stolen . | . . . Parts Stripped . | . . . Power Chain Reactions . | . . . Alert | -11 -10 -10 ------- Run | Yrd Mat Min Maximum Alert Level . | . . . Low Security (%) 100 | 100 100 100 Level 1 . | . . . Level 2 . | . . . Level 3 . | . . . Level 4 . | . . . Level 5 . | . . . High Security . | . . . Max Security . | . . . Peak Influence 128 | 10 128 101 Initial 25 | . 3 25 Average 38 | 1 47 58 Influence Increases 401 | 35 249 117 Destroy 0b10 Robot/C 220 | . 160 60 Destroy 0b10 Robot/NC 45 | 35 5 5 Destroy Leader 50 | . 40 10 Disable Machine 15 | . 15 . Destroy Structure 56 | . 14 42 Lose Combat Pursuer 15 | . 15 . Influence Decreases 399 | 30 187 182 Entered New Map 44 | . 2 42 Time Decay 285 | 30 165 90 Lost Part 70 | . 20 50 Squads Dispatched 2 | . 2 . Investigation . | . . . Extermination . | . . . Reinforcement 2 | . 2 . Assault . | . . . Garrison . | . . . Intercept . | . . . Searches Triggered . | . . . Construction Impeded . | . . . Haulers Reinforced . | . . . Active Scanning Responses . | . . . Cargo Convoy Interrupts . | . . . Stealth | -11 -10 -10 --------- Run | Yrd Mat Min Distress Signals 1 | . 1 . Communications Jammed . | . . . Distress Signals . | . . . Times Spotted 26 | . 16 10 Peak Tracking Total 6 | . 6 3 Tactical Retreats 2 | . 1 1 Traps | -11 -10 -10 ------- Run | Yrd Mat Min Traps Triggered 2 | . 2 . Indirectly . | . . . Trap Hack Attempts . | . . . Triggered . | . . . Disarmed . | . . . Reprogrammed . | . . . Reused . | . . . Traps Extracted . | . . . Installed . | . . . Triggered . | . . . Machines | -11 -10 -10 ---------- Run | Yrd Mat Min Machines Disabled 1 | . 1 . Max in Single Turn 1 | . 1 . Machines Repaired . | . . . Machines Dismantled . | . . . Machines Sabotaged . | . . . Overloaded Fab Kills . | . . . Hacking | -11 -10 -10 --------- Run | Yrd Mat Min Machines Accessed . | . . . Terminals . | . . . Fabricators . | . . . Repair Stations . | . . . Recycling Units . | . . . Scanalyzers . | . . . Garrison Access . | . . . Total Hacks . | . . . Successful . | . . . Failed . | . . . Catastrophic . | . . . Database Lockouts . | . . . Manual . | . . . Terminals . | . . . Fabricators . | . . . Repair Stations . | . . . Recycling Units . | . . . Scanalyzers . | . . . Garrison Access . | . . . Terminal Hacks . | . . . Fabricator Hacks . | . . . Repair Station Hacks . | . . . Recycling Unit Hacks . | . . . Scanalyzer . | . . . Garrison Access Hacks . | . . . Unauthorized Hacks . | . . . Terminals . | . . . Fabricators . | . . . Repair Stations . | . . . Recycling Units . | . . . Scanalyzers . | . . . Garrison Access . | . . . Data Cores Recovered . | . . . Used . | . . . Hacking Detections . | . . . Full Trace Events . | . . . Feedback Events . | . . . Feedback Blocked . | . . . Robot Schematics Acquired . | . . . Robots Built . | . . . Authchips . | . . . Time . | . . . Total Robot Build Rating . | . . . Part Schematics Acquired . | . . . Parts Built . | . . . Authchips . | . . . Time . | . . . Total Part Build Rating . | . . . Part Studies Acquired . | . . . Parts Repaired . | . . . Time . | . . . Parts Recycled . | . . . Recycled Matter . | . . . Retrieved Matter . | . . . Retrieved Components . | . . . Parts Scanalyzed . | . . . Part Schematics Acquired . | . . . Parts Damaged . | . . . Bothacking | -11 -10 -10 ------------ Run | Yrd Mat Min Used RIF Installer . | . . . Robots Hacked . | . . . Non-combat . | . . . Combat . | . . . Robot Hacks Applied . | . . . Relay Couplers Released . | . . . Fabnet Peak Effective % . | . . . Robots Rewired . | . . . Allies Hacked . | . . . Hacks Repelled . | . . . Allies | -11 -10 -10 -------- Run | Yrd Mat Min Total Allies . | . . . Largest Group . | . . . Highest-Rated Group . | . . . Highest-Rated Ally . | . . . Total Orders . | . . . Ally Attacks . | . . . Total Damage . | . . . Kills . | . . . Allies Corrupted . | . . . Allies Melted . | . . . Intel | -11 -10 -10 ------- Run | Yrd Mat Min Active Infowar (turns) 370 | 163 207 . Terrain 370 | 163 207 . Robot Analysis Total . | . . . Derelict Logs Recovered . | . . . Drone Launches . | . . . Drone Recoveries . | . . . Exploration | -11 -10 -10 ------------- Run | Yrd Mat Min Turns Passed 837 | 218 435 184 Spaces Moved 510 | 72 312 126 Core 9 | 2 . 7 Treads . | . . . Legs 218 | . 99 119 Wheels 283 | 70 213 . Hover . | . . . Flight . | . . . Fastest Speed 50 | 50 100 100 Average Speed 107 | 94 106 118 Slowest Speed 120 | 100 120 120 Overloaded Moves . | . . . Propulsion Burnouts . | . . . Robots Hopped . | . . . Potential Cave-ins . | . . . Cave-ins Triggered . | . . . Exploration Rate (%) 31 | 5 56 34 Regions Visited 2 Branch Regions 1 Pre-discovered Areas . | . . . Known Exits Taken 1 | . 1 . Unknown Exits Taken 1 | 1 . . Scrap Searched . | . . . Spaces Dug 8 | . . 8 Terrain Destroyed 69 | . 18 51 Melee . | . . . Projectile . | . . . AOE 69 | . 18 51 Terrain Rammed . | . . . Walls Destroyed . | . . . Machines Disabled . | . . . Actions | -11 -10 -10 --------- Run | Yrd Mat Min Total 723 | 191 384 148 Wait 145 | 90 43 12 Move 508 | 71 311 126 Hop . | . . . Pick Up 9 | 5 4 . Fast Attach 8 | 7 1 . Attach 6 | 2 3 1 Detach 4 | 2 2 . Swap . | . . . Drop 3 | . 3 . Fire 40 | 14 17 9 Melee . | . . . Ram . | . . . Kick . | . . . Crush . | . . . Escape Stasis . | . . . Rewire . | . . . Trap . | . . . Miscellaneous . | . . . Route ------- -11/Scrapyard -10/Materials (discovered 4 exits: [*Mat] / *Min x2 / *Sub) -10/Mines History --------- Turn | Location | Event 19 | -11/Scrapyard | Discovered new exit (range 15) 219 | -11/Scrapyard | Entered Materials 294 | -10/Materials | Discovered new exit (range 6) 315 | -10/Materials | Build established: Mutant 413 | -10/Materials | Discovered new exit (range 16) 473 | -10/Materials | Discovered new exit (range 13) 550 | -10/Materials | Discovered new exit (range 11) 560 | -10/Materials | Identified exit to Subcaves 652 | -10/Materials | Identified exit to Mines 654 | -10/Materials | Entered Mines 661 | -10/Mines | Met a Derelict bent on vengeance 709 | -10/Mines | Assembled infested the area 824 | -10/Mines | Core integrity fell below 50% 832 | -10/Mines | Core integrity fell below 20% 838 | -10/Mines | Destroyed by D-53 Grenadier with Mini Grenade Launcher Last Messages --------------- 00746_ PH-7CP(g) destroyed. 00771_ as-97399 destroyed. 00771_ as-71475 destroyed. 00773_ System corrupted: Heat flow error (+151). 00777_ Ion Engine destroyed. 00777_ Destroyed Ion Engine. 00778_ The unstable cave ceiling collapses. 00780_ Knocked back. 00786_ as-71301 destroyed. 00788_ The unstable cave ceiling collapses. 00792_ Acquired 2 matter. 00804_ as-01665 destroyed. 00816_ Mining Laser destroyed. 00816_ Pressure Siphon disabled. 00819_ The unstable cave ceiling collapses. 00819_ Grenade Launcher destroyed. 00819_ Aluminum Leg destroyed. 00821_ The unstable cave ceiling collapses. 00831_ Aluminum Leg destroyed. 00832_ The unstable cave ceiling collapses. Map ----- +----------------------------------------------------+ | ????????????????????????????# ## #??????? | | ????????????????????????????# ??# #??????? | | ????????????????????????????#???# #??????? | | ???????????????????????????? ?# #??????? | | ???????????????????????????? %?# #??????? | | ???????????????????????????? #??????? | | ?????????????????????????? # #??????? | | ????????????????????????### # # #######? | | ????????????????????????# # #? | | ??????????????????? # ## # #### #? | | ?????????????????? # ???# #? | | ???????????????? ###??# #? | | ???????????????# #??# #? | | ??????????????? ##?# #? | | ??????????????? ### #? | | ????????????????? = #? | | ?????????????????? ##? | | ???????????????????# # d# " #? | | ????????????????????# ## #? | | ????????????????????# ## #?? | | ????????????????????# # #?? | | ???????????????????## ##?? | | ???????????????????# # #?? | | ???????????????????# ### ##?? | | ??????????????????## #?### #??? | | ??????????????????# @##???# ###?? | | ?????????????????# #????# #?? | | ????????????????# #????# ##? | | ????????????????# ????## #? | | ????????????????## ?????# ##? | | ?????????????????#### #####?????# ####? | | ????????????????????# ??????????# #???? | | ????????????????????#???????????### #???? | | ??????????????????????????????????####???? | | ?????????????????????????????????????????? | | ?????????????????????????????????????????? | | ?????????????????????????????????????????? | | ?????????????????????????????????????????? | | ?????????????????????????????????????????? | | ?????????????????????????????????????????? | | ?????????????????????????????????????????? | | ?????????????????????????????????????????? | | ?????????????????????????????????????????? | | | | | | | | | | | | | | | +----------------------------------------------------+ Best States ------------- Heat Dissipation 25 Energy Generation 10 Energy Capacity 250 Matter Stores 300 Matter Capacity 300 Sight Range 16 Terrain Scan Range 16 Terrain Scan Density 10 Evasion (%) 55 Item Schematics ----------------- None Robot Schematics ------------------ None Fabricated ------------ Nothing Repaired ---------- Nothing Studied --------- None Alien Tech Used ----------------- None Achievements -------------- None Challenges ------------ None Game ------ Seed TransportMicroGravjet Manual? 0 Play Time 00:12:34 Cumulative 34.9 hours Start 2026.03.27 @ 16:34:47 End 2026.03.27 @ 16:45:22 Sessions 1 Manual Loads 0 Difficulty Rogue Special Mode None Game No. 45 Rogue 26 Adventurer 0 Explorer 19 Win Type - Total 1 Types 1/0/0/0/0/0/0/0/0/0 Lore% 30 Gallery% 30 Achievement% 25 Wizard Run 0 Options --------- Layout 0 ASCII 0 Keyboard 1 Movement Arrows Keybinds 0 Fullscreen 2 Font 12/Smallcaps Map View 76x50 Zoom Use 0% Tactical HUD 1 Map Filters NONE Filters NONE Steam X RUN: c8322bfa-5d45-4e6d-8483-c02ca985bb70